fUST/lending_fUST_20250618
["ID","MTS","AMOUNT","RATE_DAILY","PERIOD"]
[366318975,1750183879769,-918.33,0.00024,6]
[366318976,1750183879778,-1120.85,0.00024,2]
[366318977,1750183879787,-478.12,0.00024,6]
[366318978,1750183879798,-531.1,0.00024,6]
[366318979,1750183879807,-1220.25,0.00024,6]
[366318980,1750183879817,-1048.25,0.00024,6]
[366318981,1750183879826,-460.0,0.00024,6]
[366318982,1750183879835,-5474.0,0.00024,7]
[366318983,1750183879846,-525.36,0.00024,6]
[366318984,1750183879855,-506.77,0.00024,6]
[366318985,1750183879865,-255.31598986,0.00024,6]
[366318986,1750183879875,-571.29,0.00024,6]
[366318987,1750183879885,-322.0156766,0.00024,6]
[366318988,1750183879895,-869.73,0.00024,6]
[366318989,1750183879904,-460.0,0.00024,6]
[366318990,1750183879914,-460.0,0.00024,6]
[366318991,1750183879923,-460.0,0.00024,6]
[366318992,1750183879933,-460.0,0.00024,6]
[366318993,1750183879942,-1798.27,0.00024,6]
[366318994,1750183879952,-475.9,0.00024,6]
[366318995,1750183879962,-160.0,0.00024,7]
[366318996,1750183879972,-5605.9,0.00024,6]
[366318997,1750183879982,-734.84,0.00024,6]
[366318998,1750183879991,-570.66,0.00024,6]
[366318999,1750183880001,-460.0,0.00024,6]
[366319000,1750183880011,-833.52,0.00024,6]
[366319001,1750183880020,-1871.98,0.00024,6]
[366319002,1750183880029,-1529.02,0.00024,6]
[366319003,1750183880039,-920.73,0.00024,6]
[366319004,1750183880050,-2538.75,0.00024,6]
[366319005,1750183880061,-582.78,0.00024,6]
[366319006,1750183880070,-460.0,0.00024,6]
[366319007,1750183880080,-229.94211981,0.00024,7]
[366319008,1750183880090,-1732.82,0.00024,6]
[366319009,1750183880100,-618.4,0.00024,6]
[366319010,1750183880110,-596.57,0.00024,6]
[366319011,1750183880120,-481.99,0.00024,6]
[366319012,1750183880130,-1910.9,0.00024,6]
[366319013,1750183880141,-160.0,0.00024,7]
[366319014,1750183880150,-1647.12,0.00024,6]
[366319015,1750183880160,-4547.79,0.00024,6]
[366319016,1750183880169,-1551.95,0.00024,6]
[366319017,1750183880179,-5865.31,0.00024,6]
[366319018,1750183880189,-1652.96,0.00024,6]
[366319019,1750183880198,-5369.29,0.00024,6]
[366319020,1750183880207,-650.75,0.00024,6]
[366319021,1750183880217,-1986.44,0.00024,6]
[366319022,1750183880227,-491.1,0.00024,6]
[366319023,1750183880236,-1822.09,0.00024,6]
[366319024,1750183880246,-2564.14,0.00024,6]
[366319025,1750183880255,-666.07,0.00024,6]
[366319026,1750183880264,-9034.17,0.00024,6]
[366319027,1750183880274,-835.98,0.00024,6]
[366319028,1750183880284,-748.19,0.00024,6]
[366319029,1750183880294,-522.02,0.00024,6]
[366319030,1750183880303,-1297.48,0.00024,6]
[366319031,1750183880313,-2281.84,0.00024,6]
[366319032,1750183880323,-2238.85,0.00024,6]
[366319033,1750183880332,-460.0,0.00024,6]
[366319034,1750183880342,-6152.94,0.00024,6]
[366319035,1750183880351,-530.82,0.00024,6]
[366319036,1750183880361,-461.84,0.00024,6]
[366319037,1750183880371,-424.62582665,0.00024,7]
[366319038,1750183880380,-975.18,0.00024,6]
[366319039,1750183880390,-310.21763862,0.00024,6]
[366319040,1750183880400,-533.36,0.00024,6]
[366319041,1750183880409,-1118.9,0.00024,6]
[366319042,1750183880419,-2996.81,0.00024,6]
[366319043,1750183880429,-2719.07,0.00024,6]
[366319044,1750183880438,-2147.82,0.00024,6]
[366319045,1750183880448,-732.3,0.00024,6]
[366319046,1750183880457,-546.66,0.00024,6]
[366319047,1750183880466,-1701.19,0.00024,6]
[366319048,1750183880476,-460.0,0.00024,6]
[366319049,1750183880486,-3292.96,0.00024,6]
[366319050,1750183880496,-460.0,0.00024,6]
[366319051,1750183880506,-1131.49,0.00024,6]
[366319052,1750183880516,-1230.25,0.00024,6]
[366319053,1750183880526,-1447.09,0.00024,6]
[366319054,1750183880535,-997.03,0.00024,6]
[366319055,1750183880544,-2693.89,0.00024,6]
[366319056,1750183880555,-599.07,0.00024,6]
[366319057,1750183880566,-3332.65,0.00024,6]
[366319058,1750183880575,-532.08,0.00024,6]
[366319059,1750183880586,-1084.84,0.00024,6]
[366319060,1750183880596,-8169.73,0.00024,6]
[366319061,1750183880605,-709.25,0.00024,6]
[366319062,1750183880615,-482.2,0.00024002,7]
[366319063,1750183880625,-1427.17308239,0.00024003,10]
[366319064,1750183880634,-168.0,0.00024008,2]
[366319065,1750183880644,-3000.0,0.0002401,2]
[366319066,1750183880654,-800.0,0.0002401,2]
[366319067,1750183880663,-3000.0,0.0002402,2]
[366319068,1750183880673,-3000.0,0.0002403,2]
[366319069,1750183880683,-500.0,0.00024038,2]
[366319070,1750183880692,-3000.0,0.0002404,2]
[366319071,1750183880703,-3000.0,0.0002405,2]
[366319072,1750183880712,-500.0,0.00024051,2]
[366319073,1750183880722,-3000.0,0.0002406,2]
[366319074,1750183880732,-151.0,0.0002407,7]
[366319075,1750183880743,-3000.0,0.0002407,2]
[366319076,1750183880752,-3000.0,0.0002408,2]
[366319077,1750183880762,-3000.0,0.0002409,2]
[366319078,1750183880771,-194.13668949,0.00024092,2]
[366319079,1750183880781,-151.0,0.00024093,7]
[366319080,1750183880790,-197.556896,0.000241,7]
[366319081,1750183880799,-197.556896,0.000241,7]
[366319082,1750183880808,-3000.0,0.000241,2]
[366319083,1750183880817,-119533.86,0.000241,2]
[366319084,1750183880827,-170.785671,0.00024107,7]
[366319085,1750183880837,-151.0,0.00024107,7]
[366319086,1750183880848,-229.476345,0.00024107,7]
[366319087,1750183880857,-229.476345,0.00024107,7]
[366319088,1750183880867,-151.0,0.00024107,7]
[366319089,1750183880877,-151.0,0.00024107,7]
[366319090,1750183880972,-151.0,0.00024108,7]
[366319091,1750183880983,-151.0,0.00024108,7]
[366319092,1750183880992,-151.0,0.00024108,7]
[366319093,1750183881002,-151.0,0.00024108,7]
[366319094,1750183881012,-885.27777638,0.00024109,6]
[366319095,1750183881024,-238.752,0.00024109,7]
[366319096,1750183881033,-197.556896,0.00024109,7]
[366319097,1750183881043,-197.556896,0.00024109,7]
[366319098,1750183881057,-151.0,0.00024109,7]
[366319099,1750183881067,-153.016111,0.00024109,7]
[366319100,1750183881076,-151.0,0.00024109,7]
[366319101,1750183881089,-151.0,0.00024109,7]
[366319102,1750183881098,-547.3,0.00024109,6]
[366319103,1750183881110,-516.39,0.00024109,6]
[366319104,1750183881119,-518.73,0.00024109,6]
[366319105,1750183881131,-918.33,0.00024109,6]
[366319106,1750183881141,-1120.85,0.00024109,2]
[366319107,1750183881150,-478.12,0.00024109,6]
[366319108,1750183881160,-531.1,0.00024109,6]
[366319109,1750183881169,-460.0,0.00024109,6]
[366319110,1750183881178,-460.0,0.00024109,6]
[366319111,1750183881194,-460.0,0.00024109,6]
[366319112,1750183881205,-1220.25,0.00024109,6]
[366319113,1750183881215,-1048.25,0.00024109,6]
[366319114,1750183881226,-370.06168863,0.00024109,6]
[366319115,1750183881236,-525.36,0.00024109,6]
[366319116,1750183881246,-506.77,0.00024109,6]
[366319117,1750183881257,-571.29,0.00024109,6]
[366319118,1750183881267,-869.73,0.00024109,6]
[366319119,1750183881277,-460.0,0.00024109,6]
[366319120,1750183881287,-460.0,0.00024109,6]
[366319121,1750183881297,-460.0,0.00024109,6]
[366319122,1750183881306,-460.0,0.00024109,6]
[366319123,1750183881316,-475.9,0.00024109,6]
[366319124,1750183881326,-1798.27,0.00024109,6]
[366319125,1750183881336,-5605.9,0.00024109,6]
[366319126,1750183881346,-734.84,0.00024109,6]
[366319127,1750183881356,-570.66,0.00024109,6]
[366319128,1750183881365,-460.0,0.00024109,6]
[366319129,1750183881375,-833.52,0.00024109,6]
[366319130,1750183881385,-1871.98,0.00024109,6]
[366319131,1750183881395,-1529.02,0.00024109,6]
[366319132,1750183881404,-920.73,0.00024109,6]
[366319133,1750183881414,-2538.75,0.00024109,6]
[366319134,1750183881424,-582.78,0.00024109,6]
[366319135,1750183881433,-282.02212949,0.00024109,6]
[366319136,1750183881443,-1732.82,0.00024109,6]
[366319137,1750183881452,-618.4,0.00024109,6]
[366319138,1750183881462,-596.57,0.00024109,6]
[366319139,1750183881472,-481.99,0.00024109,6]
[366319140,1750183881482,-1910.9,0.00024109,6]
[366319141,1750183881491,-1647.12,0.00024109,6]
[366319142,1750183881501,-4547.79,0.00024109,6]
[366319143,1750183881511,-1551.95,0.00024109,6]
[366319144,1750183881521,-5865.31,0.00024109,6]
[366319145,1750183881530,-1652.96,0.00024109,6]
[366319146,1750183881540,-5369.29,0.00024109,6]
[366319147,1750183881549,-650.75,0.00024109,6]
[366319148,1750183881559,-1986.44,0.00024109,6]
[366319149,1750183881568,-491.1,0.00024109,6]
[366319150,1750183881578,-1822.09,0.00024109,6]
[366319151,1750183881588,-2564.14,0.00024109,6]
[366319152,1750183881598,-666.07,0.00024109,6]
[366319153,1750183881608,-9034.17,0.00024109,6]
[366319154,1750183881617,-835.98,0.00024109,6]
[366319155,1750183881627,-748.19,0.00024109,6]
[366319156,1750183881636,-522.02,0.00024109,6]
[366319157,1750183881653,-1297.48,0.00024109,6]
[366319158,1750183881671,-2238.85,0.00024109,6]
[366319159,1750183881688,-460.0,0.00024109,6]
[366319160,1750183881705,-6152.94,0.00024109,6]
[366319161,1750183881724,-530.82,0.00024109,6]
[366319162,1750183881742,-461.84,0.00024109,6]
[366319163,1750183881759,-975.18,0.00024109,6]
[366319164,1750183881774,-533.36,0.00024109,6]
[366319165,1750183881788,-1118.9,0.00024109,6]
[366319166,1750183881805,-2996.81,0.00024109,6]
[366319167,1750183881825,-2719.07,0.00024109,6]
[366319168,1750183881843,-2147.82,0.00024109,6]
[366319169,1750183881855,-732.3,0.00024109,6]
[366319170,1750183881875,-546.66,0.00024109,6]
[366319171,1750183881890,-1701.19,0.00024109,6]
[366319172,1750183881906,-368.57298503,0.00024109,6]
[366319173,1750183881922,-3292.96,0.00024109,6]
[366319174,1750183881939,-460.0,0.00024109,6]
[366319175,1750183881954,-1131.49,0.00024109,6]
[366319176,1750183881969,-1230.25,0.00024109,6]
[366319177,1750183881985,-1447.09,0.00024109,6]
[366319178,1750183882001,-997.03,0.00024109,6]
[366319179,1750183882017,-2693.89,0.00024109,6]
[366319180,1750183882033,-599.07,0.00024109,6]
[366319181,1750183882051,-3332.65,0.00024109,6]
[366319182,1750183882066,-532.08,0.00024109,6]
[366319183,1750183882081,-1084.84,0.00024109,6]
[366319184,1750183882098,-8169.73,0.00024109,6]
[366319185,1750183882113,-709.25,0.00024109,6]
[366319186,1750183882128,-3000.0,0.0002411,2]
[366319187,1750183882143,-168.0,0.00024111,2]
[366319188,1750183882158,-3000.0,0.0002412,2]
[366319189,1750183882174,-800.0,0.00024128,2]
[366319190,1750183882190,-3000.0,0.0002413,2]
[366319191,1750183882205,-151.0,0.00024136,7]
[366319192,1750183882220,-151.0,0.00024136,7]
[366319193,1750183882234,-3000.0,0.0002414,2]
[366319194,1750183882249,-168.0,0.00024144,2]
[366319195,1750183882262,-3000.0,0.0002415,2]
[366319196,1750183882277,-153.0,0.00024152,3]
[366319197,1750183882292,-1747.0,0.0002416,3]
[366319198,1750183882306,-156.01367261,0.0002416,3]
[366319199,1750183882322,-317.0,0.0002416,3]
[366319200,1750183882336,-317.0,0.0002416,3]
[366319201,1750183882350,-317.0,0.0002416,3]
[366319202,1750183882364,-317.0,0.0002416,3]
[366319203,1750183882379,-317.0,0.0002416,3]
[366319204,1750183882393,-317.0,0.0002416,3]
[366319205,1750183882409,-317.0,0.0002416,3]
[366319206,1750183882424,-317.0,0.0002416,3]
[366319207,1750183882439,-317.0,0.0002416,3]
[366319208,1750183882453,-317.0,0.0002416,3]
[366319209,1750183882468,-317.0,0.0002416,3]
[366319210,1750183882483,-317.0,0.0002416,3]
[366319211,1750183882498,-205.95149747,0.0002416,3]
[366319212,1750183882513,-1747.0,0.0002416,3]
[366319213,1750183882527,-1747.0,0.0002416,3]
[366319214,1750183882544,-759.96256108,0.0002416,3]
[366319215,1750183882559,-317.0,0.0002416,3]
[366319216,1750183882574,-317.0,0.0002416,3]
[366319217,1750183882588,-317.0,0.0002416,3]
[366319218,1750183882603,-317.0,0.0002416,3]
[366319219,1750183882617,-317.0,0.0002416,3]
[366319220,1750183882631,-317.0,0.0002416,3]
[366319221,1750183882648,-317.0,0.0002416,3]
[366319222,1750183882664,-279.9877432,0.0002416,3]
[366319223,1750183882680,-3000.0,0.0002416,2]
[366319224,1750183882695,-552.0,0.0002416,2]
[366319225,1750183882832,-151.0,0.00024164,7]
[366319226,1750183882843,-482.2,0.00024166,7]
[366319227,1750183882852,-3000.0,0.0002417,2]
[366319228,1750183882862,-152.812,0.00024171,2]
[366319229,1750183882871,-236.195,0.00024171,2]
[366319230,1750183882881,-964.514,0.00024171,2]
[366319231,1750183882891,-653.0,0.00024171,2]
[366319232,1750183882900,-2160.0,0.00024171,2]
[366319233,1750183882910,-197.556896,0.00024173,7]
[366319234,1750183882920,-197.556896,0.00024173,7]
[366319235,1750183882930,-1427.17308239,0.00024176,10]
[366319236,1750183882941,-500.0,0.00024179,2]
[366319237,1750183882950,-3000.0,0.0002418,2]
[366319238,1750183882959,-289.4,0.00024183,2]
[366319239,1750183882969,-800.0,0.00024187,2]
[366319240,1750183882980,-3000.0,0.0002419,2]
[366319241,1750183882989,-287.270598,0.00024191,7]
[366319242,1750183882999,-500.0,0.00024191,3]
[366319243,1750183883008,-151.0,0.00024191,6]
[366319244,1750183883017,-151.0,0.00024191,6]
[366319245,1750183883026,-500.0,0.00024191,6]
[366319246,1750183883036,-201.23158613,0.00024191,6]
[366319247,1750183883046,-201.95831347,0.00024191,6]
[366319248,1750183883058,-152.19137071,0.00024191,6]
[366319249,1750183883067,-159.78301553,0.00024191,6]
[366319250,1750183883076,-152.41493749,0.00024191,6]
[366319251,1750183883086,-209.3569613,0.00024191,6]
[366319252,1750183883096,-151.0,0.00024191,6]
[366319253,1750183883106,-151.0,0.00024191,6]
[366319254,1750183883115,-151.0,0.00024191,6]
[366319255,1750183883124,-151.0,0.00024191,2]
[366319256,1750183883135,-151.0,0.00024191,2]
[366319257,1750183883145,-245.0,0.00024191,6]
[366319258,1750183883154,-151.0,0.00024191,6]
[366319259,1750183883164,-500.0,0.00024192,2]
[366319260,1750183883173,-20755.12788621,0.000242,7]
[366319261,1750183883182,-151.0,0.000242,7]
[366319262,1750183883192,-151.0,0.000242,7]
[366319263,1750183883201,-170.785671,0.000242,7]
[366319264,1750183883210,-151.0,0.000242,7]
[366319265,1750183883219,-229.476345,0.000242,7]
[366319266,1750183883228,-229.476345,0.000242,7]
[366319267,1750183883237,-971.915303,0.000242,7]
[366319268,1750183883247,-151.0,0.000242,7]
[366319269,1750183883256,-151.0,0.000242,7]
[366319270,1750183883266,-3000.0,0.000242,2]
[366319271,1750183883275,-151.0,0.000242,7]
[366319272,1750183883284,-850.0,0.000242,5]
[366319273,1750183883293,-1000.0,0.000242,2]
[366319274,1750183883303,-845.62440851,0.000242,3]
[366319275,1750183883312,-835.82910252,0.000242,3]
[366319276,1750183883321,-160.0,0.000242,3]
[366319277,1750183883331,-229.94211981,0.000242,3]
[366319278,1750183883340,-160.0,0.000242,3]
[366319279,1750183883350,-699.0,0.000242,2]
[366319280,1750183883359,-12540.12310952,0.000242,3]
[366319281,1750183883368,-3000.0,0.0002421,2]
[366319282,1750183883377,-151.0,0.00024217,7]
[366319283,1750183883387,-151.0,0.00024217,7]
[366319284,1750183883397,-151.0,0.00024217,7]
[366319285,1750183883407,-218.039585,0.00024217,7]
[366319286,1750183883416,-260.39746,0.00024217,7]
[366319287,1750183883428,-197.556896,0.00024218,7]
[366319288,1750183883438,-197.556897,0.00024218,7]
[366319289,1750183883448,-500.0,0.00024218,3]
[366319290,1750183883457,-199.50468035,0.00024218,6]
[366319291,1750183883467,-199.28354863,0.00024218,6]
[366319292,1750183883476,-500.0,0.00024218,6]
[366319293,1750183883486,-151.0,0.00024218,6]
[366319294,1750183883496,-198.83854736,0.00024218,2]
[366319295,1750183883507,-198.0,0.00024218,2]
[366319296,1750183883516,-2125.97,0.00024219,2]
[366319297,1750183883526,-151.0,0.00024219,7]
[366319298,1750183883535,-154.827955,0.00024219,7]
[366319299,1750183883545,-151.0,0.00024219,7]
[366319300,1750183883555,-151.0,0.00024219,7]
[366319301,1750183883565,-151.684097,0.00024219,7]
[366319302,1750183883575,-151.0,0.00024219,7]
[366319303,1750183883584,-547.3,0.00024219,6]
[366319304,1750183883594,-516.39,0.00024219,6]
[366319305,1750183883604,-518.73,0.00024219,6]
[366319306,1750183883615,-918.33,0.00024219,6]
[366319307,1750183883624,-1120.85,0.00024219,2]
[366319308,1750183883635,-478.12,0.00024219,6]
[366319309,1750183883644,-531.1,0.00024219,6]
[366319310,1750183883654,-1220.25,0.00024219,6]
[366319311,1750183883663,-1048.25,0.00024219,6]
[366319312,1750183883674,-525.36,0.00024219,6]
[366319313,1750183883684,-506.77,0.00024219,6]
[366319314,1750183883694,-571.29,0.00024219,6]
[366319315,1750183883704,-869.73,0.00024219,6]
[366319316,1750183883713,-460.0,0.00024219,6]
[366319317,1750183883723,-460.0,0.00024219,6]
[366319318,1750183883733,-460.0,0.00024219,6]
[366319319,1750183883742,-460.0,0.00024219,6]
[366319320,1750183883752,-475.9,0.00024219,6]
[366319321,1750183883761,-1798.27,0.00024219,6]
[366319322,1750183883771,-5605.9,0.00024219,6]
[366319323,1750183883781,-734.84,0.00024219,6]
[366319324,1750183883791,-570.66,0.00024219,6]
[366319325,1750183883802,-475.31150103,0.00024219,6]
[366319326,1750183883811,-833.52,0.00024219,6]
[366319327,1750183883821,-1529.02,0.00024219,6]
[366319328,1750183883832,-1871.98,0.00024219,6]
[366319329,1750183883841,-920.73,0.00024219,6]
[366319330,1750183883851,-2538.75,0.00024219,6]
[366319331,1750183883860,-582.78,0.00024219,6]
[366319332,1750183883870,-1732.82,0.00024219,6]
[366319333,1750183883880,-618.4,0.00024219,6]
[366319334,1750183883890,-596.57,0.00024219,6]
[366319335,1750183883900,-481.99,0.00024219,6]
[366319336,1750183883910,-1910.9,0.00024219,6]
[366319337,1750183883920,-1647.12,0.00024219,6]
[366319338,1750183883931,-4547.79,0.00024219,6]
[366319339,1750183883941,-1551.95,0.00024219,6]
[366319340,1750183883951,-5865.31,0.00024219,6]
[366319341,1750183883961,-1652.96,0.00024219,6]
[366319342,1750183883971,-5369.29,0.00024219,6]
[366319343,1750183883981,-650.75,0.00024219,6]
[366319344,1750183883991,-1986.44,0.00024219,6]
[366319345,1750183884001,-491.1,0.00024219,6]
[366319346,1750183884010,-1822.09,0.00024219,6]
[366319347,1750183884019,-2564.14,0.00024219,6]
[366319348,1750183884030,-666.07,0.00024219,6]
[366319349,1750183884039,-9034.17,0.00024219,6]
[366319350,1750183884052,-835.98,0.00024219,6]
[366319351,1750183884062,-748.19,0.00024219,6]
[366319352,1750183884072,-522.02,0.00024219,6]
[366319353,1750183884082,-1297.48,0.00024219,6]
[366319354,1750183884092,-2238.85,0.00024219,6]
[366319355,1750183884103,-585.97040296,0.00024219,6]
[366319356,1750183884112,-6152.94,0.00024219,6]
[366319357,1750183884122,-530.82,0.00024219,6]
[366319358,1750183884135,-461.84,0.00024219,6]
[366319359,1750183884146,-975.18,0.00024219,6]
[366319360,1750183884156,-533.36,0.00024219,6]
[366319361,1750183884167,-1118.9,0.00024219,6]
[366319362,1750183884177,-2996.81,0.00024219,6]
[366319363,1750183884187,-2719.07,0.00024219,6]
[366319364,1750183884197,-2147.82,0.00024219,6]
[366319365,1750183884207,-732.3,0.00024219,6]
[366319366,1750183884216,-546.66,0.00024219,6]
[366319367,1750183884225,-1701.19,0.00024219,6]
[366319368,1750183884236,-3292.96,0.00024219,6]
[366319369,1750183884362,-460.0,0.00024219,6]
[366319370,1750183884372,-1131.49,0.00024219,6]
[366319371,1750183884386,-1230.25,0.00024219,6]
[366319372,1750183884396,-1447.09,0.00024219,6]
[366319373,1750183884406,-997.03,0.00024219,6]
[366319374,1750183884416,-2693.89,0.00024219,6]
[366319375,1750183884425,-599.07,0.00024219,6]
[366319376,1750183884434,-3332.65,0.00024219,6]
[366319377,1750183884443,-532.08,0.00024219,6]
[366319378,1750183884453,-1084.84,0.00024219,6]
[366319379,1750183884463,-8169.73,0.00024219,6]
[366319380,1750183884473,-709.25,0.00024219,6]
[366319381,1750183884483,-3000.0,0.0002422,2]
[366319382,1750183884493,-3000.0,0.0002423,2]
[366319383,1750183884502,-3000.0,0.0002424,2]
[366319384,1750183884511,-299.394,0.00024246,3]
[366319385,1750183884521,-186.91841724,0.00024246,6]
[366319386,1750183884530,-198.0,0.00024246,6]
[366319387,1750183884541,-2125.97,0.00024246,2]
[366319388,1750183884551,-151.0,0.00024246,7]
[366319389,1750183884561,-151.0,0.00024246,7]
[366319390,1750183884571,-431.51684275,0.00024247,2]
[366319391,1750183884581,-3000.0,0.0002425,2]
[366319392,1750183884591,-2200.0,0.00024253,2]
[366319393,1750183884601,-500.0,0.00024258,2]
[366319394,1750183884610,-3000.0,0.0002426,2]
[366319395,1750183884620,-2500.0,0.00024264,2]
[366319396,1750183884630,-3000.0,0.0002427,2]
[366319397,1750183884641,-2125.97,0.00024273,2]
[366319398,1750183884651,-151.0,0.00024273,7]
[366319399,1750183884661,-158.606027,0.00024273,7]
[366319400,1750183884670,-200.0,0.0002428,10]
[366319401,1750183884680,-3000.0,0.0002428,2]
[366319402,1750183884690,-3000.0,0.0002429,2]
[366319403,1750183884700,-350.0,0.00024296,2]
[366319404,1750183884711,-250.0,0.00024298,2]
[366319405,1750183884728,-1000.0,0.000243,7]
[366319406,1750183884738,-1000.0,0.000243,7]
[366319407,1750183884747,-1000.0,0.000243,7]
[366319408,1750183884757,-1000.0,0.000243,7]
[366319409,1750183884767,-1000.0,0.000243,7]
[366319410,1750183884777,-1000.0,0.000243,7]
[366319411,1750183884786,-1000.0,0.000243,7]
[366319412,1750183884795,-1000.0,0.000243,7]
[366319413,1750183884805,-59298.84700146,0.000243,2]
[366319414,1750183884815,-151.0,0.000243,7]
[366319415,1750183884825,-3000.0,0.000243,2]
[366319416,1750183884834,-2125.97,0.00024301,2]
[366319417,1750183884844,-151.66546,0.00024301,7]
[366319418,1750183884854,-151.0,0.00024301,7]
[366319419,1750183884864,-255.527654,0.00024301,7]
[366319420,1750183884874,-3000.0,0.0002431,2]
[366319421,1750183884884,-3000.0,0.0002432,2]
[366319422,1750183884895,-151.0,0.00024326,7]
[366319423,1750183884905,-170.456833,0.00024327,7]
[366319424,1750183884915,-170.785671,0.00024327,7]
[366319425,1750183884925,-198.093006,0.00024327,7]
[366319426,1750183884935,-229.476345,0.00024327,7]
[366319427,1750183884945,-229.476345,0.00024327,7]
[366319428,1750183884954,-151.0,0.00024327,7]
[366319429,1750183884964,-151.0,0.00024327,7]
[366319430,1750183884974,-2125.97,0.00024328,2]
[366319431,1750183884984,-151.0,0.00024328,7]
[366319432,1750183884995,-971.915303,0.00024328,7]
[366319433,1750183885004,-151.0,0.00024328,7]
[366319434,1750183885013,-151.0,0.00024328,7]
[366319435,1750183885023,-547.3,0.00024328,6]
[366319436,1750183885033,-516.39,0.00024328,6]
[366319437,1750183885042,-518.73,0.00024328,6]
[366319438,1750183885055,-918.33,0.00024328,6]
[366319439,1750183885065,-1120.85,0.00024328,2]
[366319440,1750183885075,-478.12,0.00024328,6]
[366319441,1750183885085,-531.1,0.00024328,6]
[366319442,1750183885096,-1220.25,0.00024328,6]
[366319443,1750183885105,-1048.25,0.00024328,6]
[366319444,1750183885115,-525.36,0.00024328,6]
[366319445,1750183885125,-506.77,0.00024328,6]
[366319446,1750183885135,-571.29,0.00024328,6]
[366319447,1750183885145,-869.73,0.00024328,6]
[366319448,1750183885155,-214.67037577,0.00024328,6]
[366319449,1750183885165,-307.22,0.00024328,6]
[366319450,1750183885174,-569.99197761,0.00024328,6]
[366319451,1750183885185,-460.0,0.00024328,6]
[366319452,1750183885194,-475.9,0.00024328,6]
[366319453,1750183885204,-1798.27,0.00024328,6]
[366319454,1750183885214,-5605.9,0.00024328,6]
[366319455,1750183885224,-734.84,0.00024328,6]
[366319456,1750183885234,-570.66,0.00024328,6]
[366319457,1750183885243,-833.52,0.00024328,6]
[366319458,1750183885253,-1529.02,0.00024328,6]
[366319459,1750183885262,-1871.98,0.00024328,6]
[366319460,1750183885271,-920.73,0.00024328,6]
[366319461,1750183885281,-2538.75,0.00024328,6]
[366319462,1750183885291,-582.78,0.00024328,6]
[366319463,1750183885301,-1732.82,0.00024328,6]
[366319464,1750183885310,-618.4,0.00024328,6]
[366319465,1750183885320,-596.57,0.00024328,6]
[366319466,1750183885330,-481.99,0.00024328,6]
[366319467,1750183885340,-1910.9,0.00024328,6]
[366319468,1750183885350,-1647.12,0.00024328,6]
[366319469,1750183885359,-4547.79,0.00024328,6]
[366319470,1750183885369,-1551.95,0.00024328,6]
[366319471,1750183885379,-5865.31,0.00024328,6]
[366319472,1750183885389,-1652.96,0.00024328,6]
[366319473,1750183885399,-5369.29,0.00024328,6]
[366319474,1750183885408,-650.75,0.00024328,6]